Cogmind - Beta 17 @@@ ROGUE MODE // 2026.07.02 @ 16:53:42 Player: pinbox Result: Destroyed by G-34 Mercenary with Small Laser Performance ------------- Evolutions (0) 0 Regions Visited (2) 400 Robots Destroyed (18) 90 Value Destroyed (461) 461 Prototype IDs (0) 0 Alien Tech Used (0) 0 Bonus (0) 0 TOTAL SCORE: 951 Bonus ------- None Cogmind --------- Core Integrity 0/250 Matter 230/300 Energy 163/200 System Corruption 0% Temperature Cool (63) Movement Rolling (120) Ox1 Location -10/Subcaves Parts ------- > --- POWER (1) -------- Subdweller Power Source > --- PROPULSION (2) --- Subdweller Monowheel > --- UTILITY (2) ------ Large Storage Unit Subdweller Optics > --- WEAPON (2) ------- Subdweller Laser Subdweller Laser > --- INVENTORY (15) --- Subdweller Power Source Subdweller Power Source Subdweller Power Source Heat Sink Subdweller Optics Makeshift Light Armor Plating Makeshift System Shield Authchip [Device] Authchip [Weapon] Dirty Datajack (20) Makeshift Sword Peak State ------------ > --- POWER ------------ Subdweller Power Source > --- PROPULSION ------- Subdweller Monowheel Subdweller Monowheel > --- UTILITY ---------- Large Storage Unit Subdweller Optics > --- WEAPON ----------- Subdweller Laser Battle Cannon > --- INVENTORY -------- Subdweller Power Source Subdweller Power Source Aluminum Leg Heat Sink Subdweller Optics Makeshift Light Armor Plating Makeshift System Shield Authchip [Device] Authchip [Weapon] Subdweller Laser Dirty Datajack Makeshift Sword [Rating: 16] Favorites ----------- Power Light Ion Engine Engine Light Ion Engine Propulsion Light Treads Treads Light Treads Leg Aluminum Leg Wheel Subdweller Monowheel Utility Large Storage Unit Device Seismic Detector Storage Large Storage Unit Weapon Battle Cannon Energy Gun Subdweller Laser Ballistic Gun Assault Rifle Ballistic Cannon Battle Cannon Build | -11 -10 -10 ------- Run | Yrd Mat Sub Slots Evolved . | . . . Power . | . . . Propulsion . | . . . Utility . | . . . Weapon . | . . . Parts Attached 21 | 7 1 13 Power 4 | 1 . 3 Engine 4 | 1 . 3 Core . | . . . Reactor . | . . . Propulsion 6 | 2 . 4 Treads 2 | 2 . . Leg 2 | . . 2 Wheel 2 | . . 2 Hover . | . . . Flight . | . . . Utility 5 | 2 1 2 Device 2 | 1 . 1 Storage 3 | 1 1 1 Processor . | . . . Hackware . | . . . Protection . | . . . Artifact . | . . . Weapon 6 | 2 . 4 Energy Gun 2 | . . 2 Energy Cannon . | . . . Ballistic Gun 2 | 2 . . Ballistic Cannon 2 | . . 2 Launcher . | . . . Special Weapon . | . . . Impact Weapon . | . . . Slashing Weapon . | . . . Piercing Weapon . | . . . Special Melee Weapon . | . . . Unidentified Prototypes . | . . . Parts Lost 8 | . . 8 Power 2 | . . 2 Propulsion 3 | . . 3 Utility 1 | . . 1 Weapon 2 | . . 2 Highest Loss Streak 2 | . . 2 To Critical Strikes . | . . . Average Backups 11 | 1 4 13 Power 2 | . 1 2 Propulsion 2 | 1 2 3 Utility 3 | . 1 4 Weapon 2 | . . 2 Tool/Special . | . . . Unused Backups 14 | . 1 13 Power 2 | . . 2 Propulsion 1 | . . 1 Utility 7 | . 1 6 Weapon 3 | . . 3 Tool/Special 1 | . . 1 Average Slot Usage (%) 99 | . 100 99 Engine 13 | . 14 13 Treads 24 | . 28 23 Leg 1 | . . 2 Wheel 1 | . . 1 Device 14 | . 14 14 Storage 14 | . 14 14 Energy Gun 1 | . . 1 Ballistic Gun 6 | . 28 3 Ballistic Cannon 20 | . . 23 Peak Build Rating 16 | 7 8 16 Average Rating 11 | 5 7 12 On Entrance 5 | . 7 8 Avg Prop Armor Cover (%) . | . . . Naked Turns . | . . . Heaviest Build 34 | 12 17 34 Greatest Support 40 | 40 40 40 Greatest Overweight (x) 1 | . . 1 Average Overweight (x) . | . . . Largest Inventory Capacity 15 | 8 10 15 Average Capacity 13 | 7 8 14 Most Carried 15 | 3 7 15 Average Carried 11 | 2 4 13 Final Capacity 15 | 8 10 15 Final Carried 11 | 3 6 11 Class Distribution -------------------- 100% | Mutant Dominant Class ---------------- Mutant | -10/Materials Mutant | -10/Subcaves Resources | -11 -10 -10 ----------- Run | Yrd Mat Sub Matter Collected 792 | 318 78 396 Remotely . | . . . Salvage Created 474 | 117 149 208 Parts 27 | 8 10 9 Haulers Intercepted 1 | . 1 . Recyclers Shooed 1 | 1 . . Parts Field Recycled . | . . . Retrieved Matter . | . . . Parts Self-Destructed 12 | . . 12 Prevented . | . . . Parts Restored . | . . . Kills | -11 -10 -10 ------- Run | Yrd Mat Sub Combat Hostiles Destroyed 13 | . 4 9 Guns 7 | . 4 3 Cannons 6 | . . 6 Classes Destroyed 6 | 2 3 1 Tunneler 3 | 3 . . Hauler 1 | . 1 . Recycler 1 | 1 . . Swarmer 3 | . 3 . Grunt 4 | . 1 3 Subdweller 6 | . . 6 Best Kill Streak 3 | 3 3 2 Combat Bots Only 3 | . 3 2 Max Kills in Single Turn 2 | 1 2 1 Gunslinging 1 | . 1 . Exploded . | . . . Melee . | . . . Uniques/NPCs Destroyed . | . . . Combat | -11 -10 -10 -------- Run | Yrd Mat Sub Hostile Shots Fired 126 | . 39 87 Missed 39 | . 13 26 Hits 87 | . 26 61 Projectile 87 | . 26 61 Damage Taken 1349 | . 223 1126 Core 256 | . 64 192 Absorbed by Shields . | . . . Core Remaining (%) 100 | 100 . . Volleys Fired 78 | 12 17 49 Largest 2 | 2 2 2 Hottest 120 | 40 40 120 Shots Fired 156 | 24 34 98 Gun 88 | 24 34 30 Cannon 68 | . . 68 Launcher . | . . . Special . | . . . Kinetic 128 | 24 34 70 Thermal 28 | . . 28 Explosive . | . . . Electromagnetic . | . . . Robot Hit Streak 24 | 4 4 24 Robot Miss Streak 4 | 1 4 3 Penetration Max . | . . . Secondary Targets 2 | . 1 1 Max Gunslinging Chain 1 | . 1 1 Shots Hit Robots 101 | 15 16 70 Core Hits 30 | 7 8 15 Critical Kills . | . . . Critical Parts Destroyed . | . . . Critical Strikes 3 | . . 3 Destroy 1 | . . 1 Blast 2 | . . 2 Melee Attacks . | . . . Impact . | . . . Slashing . | . . . Piercing . | . . . Sneak Attacks . | . . . Combat Hostiles . | . . . Follow-up Attacks . | . . . Damage Inflicted 1678 | 136 174 1368 Guns 681 | 136 174 371 Cannons 997 | . . 997 Explosions . | . . . Melee . | . . . Ramming . | . . . Kinetic 1319 | 136 174 1009 Thermal 359 | . . 359 Explosive . | . . . Electromagnetic . | . . . Impact . | . . . Slashing . | . . . Piercing . | . . . Highest Corruption . | . . . Average Corruption . | . . . Corruption Purged . | . . . Corruption Blocked . | . . . Overload Shots . | . . . Overflow Damage . | . . . Projectiles . | . . . Explosions . | . . . Melee . | . . . Knockbacks 8 | . . 8 Impact . | . . . Kinetic 8 | . . 8 Secondary . | . . . Self-Inflicted Damage . | . . . Shots . | . . . Rammed . | . . . Targets Rammed . | . . . Kicked . | . . . Crushed . | . . . Highest Temperature 57 | . 6 57 Average Temperature 10 | . 6 10 Received Heat Transfer 426 | . 30 396 Siege Activations . | . . . Martial Activations . | . . . Shielding Activations . | . . . Robots Disrupted . | . . . Combat Hostiles . | . . . Robots Corrupted . | . . . Combat Hostiles . | . . . Parts Fried . | . . . Impact Corruptions . | . . . Robots Melted . | . . . Combat Hostiles . | . . . Parts Melted . | . . . Heat Transferred 450 | . . 450 Parts Sabotaged . | . . . Parts Stolen . | . . . Parts Stripped . | . . . Power Chain Reactions . | . . . Alert | -11 -10 -10 ------- Run | Yrd Mat Sub Maximum Alert Level . | . . . Low Security (%) 100 | 100 100 . Level 1 . | . . . Level 2 . | . . . Level 3 . | . . . Level 4 . | . . . Level 5 . | . . . High Security . | . . . Max Security . | . . . Peak Influence 78 | 10 78 . Initial . | . . . Average 19 | 1 34 . Influence Increases 218 | 20 118 80 Destroy 0b10 Robot/C 140 | . 80 60 Destroy 0b10 Robot/NC 25 | 20 5 . Destroy Leader 42 | . 22 20 Successful Hack 11 | . 11 . Influence Decreases 188 | 20 60 108 Entered New Map 29 | . . 29 Time Decay 141 | 20 60 61 Lost Part 18 | . . 18 Squads Dispatched 1 | . 1 . Investigation . | . . . Extermination . | . . . Reinforcement 1 | . 1 . Assault . | . . . Garrison . | . . . Intercept . | . . . Searches Triggered . | . . . Construction Impeded . | . . . Haulers Reinforced . | . . . Active Scanning Responses . | . . . Cargo Convoy Interrupts . | . . . Stealth | -11 -10 -10 --------- Run | Yrd Mat Sub Distress Signals 1 | . 1 . Communications Jammed . | . . . Distress Signals . | . . . Times Spotted 18 | . 7 11 Peak Tracking Total 4 | . 4 2 Tactical Retreats . | . . . Traps | -11 -10 -10 ------- Run | Yrd Mat Sub Traps Triggered 3 | . . 3 Indirectly . | . . . Trap Hack Attempts . | . . . Triggered . | . . . Disarmed . | . . . Reprogrammed . | . . . Reused . | . . . Traps Extracted . | . . . Installed . | . . . Triggered . | . . . Machines | -11 -10 -10 ---------- Run | Yrd Mat Sub Machines Disabled . | . . . Max in Single Turn . | . . . Machines Repaired . | . . . Machines Dismantled . | . . . Machines Sabotaged . | . . . Overloaded Fab Kills . | . . . Hacking | -11 -10 -10 --------- Run | Yrd Mat Sub Machines Accessed 2 | . 2 . Terminals 2 | . 2 . Fabricators . | . . . Repair Stations . | . . . Recycling Units . | . . . Scanalyzers . | . . . Garrison Access . | . . . Total Hacks 7 | . 7 . Successful 2 | . 2 . Failed 5 | . 5 . Catastrophic . | . . . Database Lockouts . | . . . Manual 7 | . 7 . Terminals 7 | . 7 . Fabricators . | . . . Repair Stations . | . . . Recycling Units . | . . . Scanalyzers . | . . . Garrison Access . | . . . Terminal Hacks . | . . . Fabricator Hacks . | . . . Repair Station Hacks . | . . . Recycling Unit Hacks . | . . . Scanalyzer . | . . . Garrison Access Hacks . | . . . Unauthorized Hacks 2 | . 2 . Terminals 2 | . 2 . Assimilate 1 | . 1 . Botnet 1 | . 1 . Fabricators . | . . . Repair Stations . | . . . Recycling Units . | . . . Scanalyzers . | . . . Garrison Access . | . . . Data Cores Recovered . | . . . Used . | . . . Hacking Detections 2 | . 2 . Full Trace Events . | . . . Feedback Events . | . . . Feedback Blocked . | . . . Robot Schematics Acquired . | . . . Robots Built . | . . . Authchips . | . . . Time . | . . . Total Robot Build Rating . | . . . Part Schematics Acquired . | . . . Parts Built . | . . . Authchips . | . . . Time . | . . . Total Part Build Rating . | . . . Part Studies Acquired . | . . . Parts Repaired . | . . . Time . | . . . Parts Recycled . | . . . Recycled Matter . | . . . Retrieved Matter . | . . . Retrieved Components . | . . . Parts Scanalyzed . | . . . Part Schematics Acquired . | . . . Parts Damaged . | . . . Bothacking | -11 -10 -10 ------------ Run | Yrd Mat Sub Used RIF Installer . | . . . Robots Hacked . | . . . Non-combat . | . . . Combat . | . . . Robot Hacks Applied . | . . . Relay Couplers Released . | . . . Fabnet Peak Effective % . | . . . Robots Rewired . | . . . Allies Hacked . | . . . Hacks Repelled . | . . . Allies | -11 -10 -10 -------- Run | Yrd Mat Sub Total Allies . | . . . Largest Group . | . . . Highest-Rated Group . | . . . Highest-Rated Ally . | . . . Total Orders . | . . . Ally Attacks . | . . . Total Damage . | . . . Kills . | . . . Allies Corrupted . | . . . Allies Melted . | . . . Intel | -11 -10 -10 ------- Run | Yrd Mat Sub Active Infowar (turns) 1759 | 18 207 1534 Optics 442 | . . 442 Seismic 1317 | 18 207 1092 Robot Analysis Total . | . . . Derelict Logs Recovered . | . . . Drone Launches . | . . . Drone Recoveries . | . . . Exploration | -11 -10 -10 ------------- Run | Yrd Mat Sub Turns Passed 1919 | 174 207 1538 Spaces Moved 1019 | 84 97 838 Core 6 | 6 . . Treads 937 | 78 97 762 Legs 32 | . . 32 Wheels 44 | . . 44 Hover . | . . . Flight . | . . . Fastest Speed 50 | 50 160 110 Average Speed 158 | 152 160 158 Slowest Speed 190 | 160 160 190 Overloaded Moves . | . . . Propulsion Burnouts . | . . . Robots Hopped . | . . . Potential Cave-ins . | . . . Cave-ins Triggered . | . . . Exploration Rate (%) 25 | 3 21 51 Regions Visited 2 Branch Regions 1 Pre-discovered Areas . | . . . Known Exits Taken . | . . . Unknown Exits Taken 2 | 1 1 . Scrap Searched 13 | . . 13 Spaces Dug . | . . . Terrain Destroyed . | . . . Melee . | . . . Projectile . | . . . AOE . | . . . Terrain Rammed . | . . . Walls Destroyed . | . . . Machines Disabled . | . . . Actions | -11 -10 -10 --------- Run | Yrd Mat Sub Total 1182 | 105 118 959 Wait 18 | . . 18 Move 1017 | 83 96 838 Hop . | . . . Pick Up 27 | 3 3 21 Fast Attach 9 | 7 . 2 Attach 11 | . . 11 Detach 6 | . . 6 Swap 3 | . 1 2 Drop 13 | . 1 12 Fire 78 | 12 17 49 Melee . | . . . Ram . | . . . Kick . | . . . Crush . | . . . Escape Stasis . | . . . Rewire . | . . . Trap . | . . . Miscellaneous . | . . . Route ------- -11/Scrapyard -10/Materials (discovered 2 exits: [*Min] / [*Sub]) -10/Subcaves (discovered 1 exit: [*Mat]) History --------- Turn | Location | Event 12 | -11/Scrapyard | Discovered new exit (range 15) 175 | -11/Scrapyard | Entered Materials 311 | -10/Materials | Build established: Mutant 362 | -10/Materials | Discovered new exit (range 16) 366 | -10/Materials | Discovered new exit (range 11) 382 | -10/Materials | Entered Subcaves 387 | -10/Subcaves | Shifting Twisted Machinery released Sub. Monowheel 398 | -10/Subcaves | Shifting Twisted Machinery released Battle Cannon 399 | -10/Subcaves | Shifting Twisted Machinery released Sub. Optics 678 | -10/Subcaves | Shifting Twisted Machinery released Battle Cannon 812 | -10/Subcaves | Disturbed a concealed Subdweller 1099 | -10/Subcaves | Shifting Twisted Machinery released Flamer 1113 | -10/Subcaves | Shifting Twisted Machinery released Battle Rifle 1510 | -10/Subcaves | A swath of the cavern ceiling suddenly collapsed 1667 | -10/Subcaves | Disturbed a concealed Subdweller 1681 | -10/Subcaves | Core integrity fell below 50% 1875 | -10/Subcaves | Discovered new exit (range 12) 1908 | -10/Subcaves | Core integrity fell below 20% 1920 | -10/Subcaves | Destroyed by G-34 Mercenary with Small Laser Last Messages --------------- 01819_ P3-UPA(R) Sub. Power Source blasted off. 01819_ P3-UPA(R) knocked back. 01820_ Aluminum Leg destroyed. 01822_ P3-UPA(R) suffers critical hit (Destroy). 01825_ P3-UPA(R) knocked back. 01828_ Destroyed Scrap Shield. 01831_ P3-UPA(R) destroyed. 01837_ Dropped Aluminum Leg. 01838_ Acquired 49 matter. 01840_ Acquired Sub. Power Source. 01841_ Acquired 3 matter. 01843_ Acquired 4 matter. 01845_ Acquired 3 matter. 01875_ EXIT=FOUND 01910_ Destroyed Imp. Heat Sink. 01913_ Battle Cannon destroyed. 01915_ Sub. Monowheel destroyed. 01920_ G-47 Trooper destroyed. 01920_ Switching to secondary target: G-34 Mercenary. Map ----- +----------------------------------------------------+ | ????????????????????????????????????????????????? | | ????????????????????????????????????????????????? | | ????????????????????????????????????????????????? | | ????????????????????????????????????????????????? | | ????????????????????????????????????????????????? | | ????????????????????????????????????????????????? | | ????????????????????????????????????????????????? | | ???????????????????????????#####????????????????? | | ??????????????????????????## ##???????????????? | | ??????????????????????????# #???????????????? | | ??????????????????????????# #????????????????? | | ???????????????????###??### #?????????????????? | | ??????????????###?## #??# #?????????????????? | | ??????????????# ### #?## #?????????????????? | | ?????????????## &% ### #?????????????????? | | ##????????#### ## ####?????????????????? | | #?????#### ## %!% ##????????????????????? | | %#?????# =# #?#####???????????????? | | %##????## ## ## ##??????????????? | | [[####### ## ### " "##?????????????? | | [=% ## # ######?## " "#?????????????? | | #??????## # "## #?????????????? | | #???????### #### #?????????????? | | ###% # ##????????# # ##?????????????? | | #?????????# # %""""##??????????????? | | #?????????# g@= ###"#???????????????? | | ## ### # #????????## ##%##???????????????????? | | #####?#######????????# #%#????????????????????? | | ?????????????????????## ????????????????????? | | ?????????????????????? #???????????????????? | | ?????????????????????? #???????????????????? | | ?????????????????????? ????????????????????? | | ?????????????????????? #???????????????????? | | ?????????????????????? ???????????????????? | | ??????????????????????# ???????????????????? | | ??????????????????????## < #???????????????????? | | ???????????????????????## #???????????????????? | | ????????????????????????# ???????????????????? | | ????????????????????????## ???????????????????? | | ?????????????????????????? # ??????????????????? | | ?????????????????????????? ##??????????????????? | | ?????????????????????????? #???????????????????? | | ?????????????????????????? ???????????????????? | | ?????????????????????????? #???????????????????? | | ?????????????????????????? ????????????????????? | | ?????????????????????????? #????????????????????? | | ????????????????????????????????????????????????? | | ????????????????????????????????????????????????? | | ????????????????????????????????????????????????? | | ????????????????????????????????????????????????? | +----------------------------------------------------+ Best States ------------- Heat Dissipation 25 Energy Generation 15 Energy Capacity 200 Matter Stores 300 Matter Capacity 300 Sight Range 21 Terrain Scan Density 10 Evasion (%) 40 Recoil Reduction 2 Authchip Count 2 Item Schematics ----------------- None Robot Schematics ------------------ None Fabricated ------------ Nothing Repaired ---------- Nothing Studied --------- None Alien Tech Used ----------------- None Achievements -------------- None Challenges ------------ None Game ------ Seed DefenseImprovedAccelerator Manual? 0 Play Time 00:15:48 Cumulative 26.7 hours Start 2026.07.02 @ 16:40:10 End 2026.07.02 @ 16:53:42 Sessions 1 Manual Loads 0 Difficulty Rogue Special Mode None Game No. 29 Rogue 29 Adventurer 0 Explorer 0 Win Type - Total 1 Types 1/0/0/0/0/0/0/0/0/0 Lore% 14 Gallery% 26 Achievement% 23 Wizard Run 0 Options --------- Layout 1 ASCII 0 Keyboard 1 Movement Numpad Keybinds 1 Fullscreen 2 Font 24/Smallcaps Map View 50x40 Zoom Use 0% Tactical HUD 1 Map Filters NONE Filters NONE Steam 1 RUN: ff2d6abe-29b5-44f6-8899-0705bea60b13